fUST/lending_fUST_20251115
["ID","MTS","AMOUNT","RATE_DAILY","PERIOD"]
[394037053,1763209831906,-404.0,0.00026394,2]
[394037054,1763209831916,-250.52070701,0.00026418,2]
[394037055,1763209831926,-4331.42210869,0.0002705,2]
[394037056,1763209831935,-209.40437684,0.00027217,2]
[394037057,1763209831945,-236.34762056,0.00027232,2]
[394037058,1763209831954,-500.0,0.00027233,2]
[394037059,1763209831965,-58236.0748754,0.00027233,2]
[394037060,1763209831974,-500.0,0.00027273,2]
[394037061,1763209831983,-504.37921029,0.00027273,2]
[394037062,1763209831995,-500.0,0.00027273,2]
[394037063,1763209832004,-500.0,0.00027273,2]
[394037064,1763209832013,-160.0,0.0002747,2]
[394037065,1763209832025,-217.15233878,0.00027765,2]
[394037066,1763209832040,-234.62343932,0.00027821,5]
[394037067,1763209832050,-779.81116757,0.00027844,2]
[394037068,1763209832059,-319.49211488,0.00027987,2]
[394037069,1763209832068,-12461.4036864,0.00027997,2]
[394037070,1763209832078,-260.0,0.00028018,2]
[394037071,1763209832087,-501.88441996,0.00028073,5]
[394037072,1763209832096,-409.71236041,0.00028073,5]
[394037073,1763209832105,-192.892,0.00028088,18]
[394037074,1763209832114,-225.18697532,0.00028313,2]
[394037075,1763209832123,-500.0,0.00028473,5]
[394037076,1763209832132,-500.0,0.00028473,5]
[394037077,1763209832141,-500.0,0.00028473,5]
[394037078,1763209832150,-520.19729629,0.00028473,5]
[394037079,1763209832158,-20255.45349751,0.000285,7]
[394037080,1763209832167,-168.0,0.00028527,2]
[394037081,1763209832176,-360.0,0.00028566,2]
[394037082,1763209832185,-510.1667955,0.00028694,2]
[394037083,1763209832194,-1182.37578503,0.00028694,2]
[394037084,1763209832203,-271.69813056,0.00028726,2]
[394037085,1763209832212,-2196.7979168,0.00028859,2]
[394037086,1763209832222,-344.769031,0.00028861,2]
[394037087,1763209832232,-481.69996397,0.00029021,5]
[394037088,1763209832244,-1000.0,0.00029021,5]
[394037089,1763209832253,-1000.0,0.00029021,5]
[394037090,1763209832262,-168.0,0.00029084,2]
[394037091,1763209832273,-460.0,0.00029114,2]
[394037092,1763209832282,-592.0,0.00029165,2]
[394037093,1763209832291,-592.0,0.00029214,7]
[394037094,1763209832300,-592.0,0.00029246,7]
[394037095,1763209832311,-250.52070701,0.00029351,2]
[394037096,1763209832320,-168.0,0.00029432,2]
[394037097,1763209832330,-592.0,0.00029433,2]
[394037098,1763209832339,-426.93356727,0.00029568,5]
[394037099,1763209832348,-1500.0,0.00029568,5]
[394037100,1763209832358,-558.55319527,0.00029662,2]
[394037101,1763209832367,-592.0,0.00029979,2]
[394037102,1763209832376,-418.5017434,0.0003,2]
[394037103,1763209832385,-917.38193167,0.00030077,2]
[394037104,1763209832394,-592.0,0.00030089,2]
[394037105,1763209832403,-152.0,0.00030166,7]
[394037106,1763209832412,-152.0,0.00030166,7]
[394037107,1763209832422,-152.0,0.00030166,7]
[394037108,1763209832431,-152.0,0.00030166,7]
[394037109,1763209832440,-152.0,0.00030166,7]
[394037110,1763209832450,-595.0,0.00030212,2]
[394037111,1763209832459,-271.55253996,0.00030225,2]
[394037112,1763209832469,-182.311608,0.00030225,2]
[394037113,1763209832478,-592.0,0.00030344,2]
[394037114,1763209832489,-595.0,0.00030352,7]
[394037115,1763209832498,-271.55253996,0.00030407,9]
[394037116,1763209832507,-592.0,0.00030504,7]
[394037117,1763209832516,-500.0,0.00030542,11]
[394037118,1763209832526,-500.0,0.00030542,11]
[394037119,1763209832535,-168.0,0.00030572,2]
[394037120,1763209832545,-271.55253996,0.00030588,17]
[394037121,1763209832554,-182.311608,0.00030588,17]
[394037122,1763209832563,-286.18481163,0.0003063,41]
[394037123,1763209832573,-592.0,0.00030705,2]
[394037124,1763209832581,-595.0,0.00030746,2]
[394037125,1763209832591,-271.55253996,0.0003077,25]
[394037126,1763209832600,-271.55253996,0.00030952,32]
[394037127,1763209832609,-182.311608,0.00030952,32]
[394037128,1763209832618,-592.0,0.00031045,2]
[394037129,1763209832627,-595.0,0.00031058,7]
[394037130,1763209832637,-271.55253996,0.00031134,40]
[394037131,1763209832649,-300.0,0.00031152,30]
[394037132,1763209832659,-300.0,0.00031152,30]
[394037133,1763209832668,-300.0,0.00031152,30]
[394037134,1763209832678,-300.0,0.00031152,30]
[394037135,1763209832688,-300.0,0.00031152,30]
[394037136,1763209832697,-300.0,0.00031152,30]
[394037137,1763209832706,-151.0,0.00031208,7]
[394037138,1763209832715,-151.0,0.00031208,7]
[394037139,1763209832725,-151.0,0.00031208,7]
[394037140,1763209832734,-151.0,0.00031208,7]
[394037141,1763209832744,-151.0,0.00031208,7]
[394037142,1763209832753,-332.0,0.00031208,7]
[394037143,1763209832764,-332.0,0.00031208,7]
[394037144,1763209832773,-332.0,0.00031208,7]
[394037145,1763209832782,-332.0,0.00031208,7]
[394037146,1763209832791,-332.0,0.00031208,7]
[394037147,1763209832800,-332.0,0.00031208,7]
[394037148,1763209832809,-332.0,0.00031208,7]
[394037149,1763209832818,-994.07677128,0.00031237,2]
[394037150,1763209832827,-319.49211488,0.00031306,2]
[394037151,1763209832836,-271.55253996,0.00031316,48]
[394037152,1763209832845,-182.311608,0.00031316,48]
[394037153,1763209832855,-271.55253996,0.00031497,56]
[394037154,1763209832964,-166.0,0.00031633,7]
[394037155,1763209832978,-166.0,0.00031633,7]
[394037156,1763209832987,-166.0,0.00031633,7]
[394037157,1763209832996,-152.0,0.00031633,7]
[394037158,1763209833006,-166.0,0.00031633,7]
[394037159,1763209833015,-152.0,0.00031633,7]
[394037160,1763209833024,-152.0,0.00031633,7]
[394037161,1763209833036,-152.0,0.00031633,7]
[394037162,1763209833055,-152.0,0.00031633,7]
[394037163,1763209833063,-152.0,0.00031633,7]
[394037164,1763209833073,-152.0,0.00031633,7]
[394037165,1763209833082,-152.0,0.00031633,7]
[394037166,1763209833091,-152.0,0.00031633,7]
[394037167,1763209833100,-152.0,0.00031633,7]
[394037168,1763209833109,-152.0,0.00031633,7]
[394037169,1763209833118,-152.0,0.00031633,7]
[394037170,1763209833127,-152.0,0.00031633,7]
[394037171,1763209833136,-152.0,0.00031633,7]
[394037172,1763209833145,-152.0,0.00031633,7]
[394037173,1763209833155,-152.0,0.00031633,7]
[394037174,1763209833164,-152.0,0.00031633,7]
[394037175,1763209833173,-152.0,0.00031633,7]
[394037176,1763209833182,-152.0,0.00031633,7]
[394037177,1763209833191,-152.0,0.00031633,7]
[394037178,1763209833199,-152.0,0.00031633,7]
[394037179,1763209833209,-152.0,0.00031633,7]
[394037180,1763209833218,-152.0,0.00031633,7]
[394037181,1763209833228,-152.0,0.00031633,7]
[394037182,1763209833242,-279.93182234,0.00031633,7]
[394037183,1763209833251,-150.0,0.00031669,2]
[394037184,1763209833261,-271.55253996,0.00031679,63]
[394037185,1763209833270,-182.311608,0.00031679,63]
[394037186,1763209833281,-160.0,0.0003172,2]
[394037187,1763209833291,-271.55253996,0.00031861,71]
[394037188,1763209833300,-600.0,0.000319,30]
[394037189,1763209833310,-271.55253996,0.00032043,79]
[394037190,1763209833319,-182.311608,0.00032043,79]
[394037191,1763209833328,-271.55253996,0.00032225,86]
[394037192,1763209833338,-250.77122772,0.00032283,2]
[394037193,1763209833347,-271.55253996,0.00032406,94]
[394037194,1763209833356,-182.311608,0.00032406,94]
[394037195,1763209833365,-158.545388,0.00032512,7]
[394037196,1763209833375,-271.55253996,0.00032588,102]
[394037197,1763209833384,-271.55253996,0.0003277,110]
[394037198,1763209833393,-182.311608,0.0003277,110]
[394037199,1763209833402,-500.0,0.00032876,2]
[394037200,1763209833411,-500.0,0.00032877,15]
[394037201,1763209833420,-500.0,0.00032877,10]
[394037202,1763209833429,-500.0,0.00032877,2]
[394037203,1763209833439,-428.88,0.00032877,30]
[394037204,1763209833448,-168.0,0.00032938,2]
[394037205,1763209833457,-1440.8239412,0.00033108,2]
[394037206,1763209833466,-417.187715,0.00033165,2]
[394037207,1763209833475,-237.66,0.00033177,2]
[394037208,1763209833485,-158.545388,0.00033225,7]
[394037209,1763209833496,-168.0,0.00033329,2]
[394037210,1763209833506,-169.0,0.00033918,64]
[394037211,1763209833515,-158.545388,0.00033938,7]
[394037212,1763209833524,-500.0,0.00033972,2]
[394037213,1763209833534,-168.0,0.00034205,2]
[394037214,1763209833543,-150.0,0.00034228,30]
[394037215,1763209833552,-321.4912767,0.00034394,2]
[394037216,1763209833561,-275.55,0.00034521,120]
[394037217,1763209833571,-158.545388,0.0003465,7]
[394037218,1763209833580,-356.5,0.00034685,2]
[394037219,1763209833590,-154.0,0.00035,120]
[394037220,1763209833600,-500.0,0.00035068,2]
[394037221,1763209833609,-720.0,0.00035091,30]
[394037222,1763209833618,-150.0,0.00035858,30]
[394037223,1763209833628,-500.0,0.00036164,2]
[394037224,1763209833637,-275.55,0.00036164,120]
[394037225,1763209833646,-475.33,0.00036193,2]
[394037226,1763209833655,-994.07677128,0.00036371,2]
[394037227,1763209833665,-158.545388,0.00036691,2]
[394037228,1763209833674,-154.0,0.000368,120]
[394037229,1763209833684,-151.0,0.000368,18]
[394037230,1763209833693,-413.0,0.00036816,2]
[394037231,1763209833702,-191.243458,0.00036959,30]
[394037232,1763209833713,-158.545388,0.00036982,2]
[394037233,1763209833723,-5770.08,0.000371,14]
[394037234,1763209833732,-215.502178,0.00037255,2]
[394037235,1763209833741,-500.0,0.0003726,2]
[394037236,1763209833750,-158.545388,0.00037273,2]
[394037237,1763209833760,-152.78,0.00037488,30]
[394037238,1763209833769,-150.206,0.00037543,2]
[394037239,1763209833778,-158.545388,0.00037564,2]
[394037240,1763209833787,-151.0,0.000376,20]
[394037241,1763209833796,-594.16,0.00037701,2]
[394037242,1763209833810,-350.0,0.00038,2]
[394037243,1763209833819,-1000.0,0.00038356,120]
[394037244,1763209833829,-1000.0,0.00038356,120]
[394037245,1763209833838,-1000.0,0.00038356,120]
[394037246,1763209833847,-1000.0,0.00038356,120]
[394037247,1763209833857,-1000.0,0.00038356,120]
[394037248,1763209833866,-755.7036032,0.00038356,120]
[394037249,1763209833875,-500.0,0.00038356,2]
[394037250,1763209833886,-2000.0,0.00038364,21]
[394037251,1763209833896,-151.0,0.000384,11]
[394037252,1763209833906,-864.0,0.000386,90]
[394037253,1763209833915,-154.0,0.000387,120]
[394037254,1763209833924,-1000.0,0.00039,120]
[394037255,1763209833934,-203.71,0.00039118,30]
[394037256,1763209833943,-319.49211488,0.00039153,3]
[394037257,1763209833952,-11104.34861673,0.00039163,2]
[394037258,1763209833964,-151.0,0.000392,13]
[394037259,1763209833974,-8608.89819244,0.00039207,2]
[394037260,1763209833983,-712.99,0.00039209,2]
[394037261,1763209833994,-10000.0,0.00039263,120]
[394037262,1763209834004,-1551.10298754,0.00039263,7]
[394037263,1763209834013,-1000.0,0.00039263,120]
[394037264,1763209834022,-239618.75747262,0.00039263,20]
[394037267,1763209837631,-5768.01354489,0.00039263,20]
[394037268,1763209837688,-17259.578052,0.00039263,20]
[394037292,1763209846114,-709.6301631,0.00039263,20]
[394037293,1763209846125,-746.1206595,0.00039263,20]
[394037294,1763209846137,-2575.18023849,0.00039263,20]
[394037295,1763209861875,167.85,5e-05,2]
[394037298,1763209982455,152.17,5e-05,2]
[394037299,1763209982780,152.17,0.00012,2]
[394039581,1763210203469,503.0,0.0001875,3]
[394039598,1763210519166,414.552891,0.00013699,2]
[394039599,1763210522965,190.63778724,0.00020187,2]
[394039611,1763210623182,5000.0,0.00020187,2]
[394039613,1763210646433,1025.34932176,0.00020187,2]
[394039614,1763210646455,3974.65067824,0.00020187,2]
[394039615,1763210668937,5000.0,0.00020187,2]
[394039616,1763210684264,1025.35932176,0.00020187,2]
[394039617,1763210692009,5000.0,0.00019997,2]
[394039618,1763210701730,179.08,5e-05,2]
[394039619,1763210702093,179.08,5.1e-05,2]
[394039620,1763210702492,179.08,5.3e-05,2]
[394039621,1763210702792,179.08,5.4e-05,2]
[394039622,1763210703215,179.08,5.6e-05,2]
[394039623,1763210703559,179.08,5.7e-05,2]
[394039624,1763210703855,179.08,5.9e-05,2]
[394039625,1763210704206,179.08,6e-05,2]
[394039626,1763210704718,179.08,6.1e-05,2]
[394039627,1763210705699,179.08,6.3e-05,2]
[394039628,1763210706060,179.08,6.4e-05,2]
[394039629,1763210706385,179.08,6.6e-05,2]
[394039630,1763210706671,179.08,6.7e-05,2]
[394039631,1763210707207,179.08,6.9e-05,2]
[394039632,1763210707529,179.08,7e-05,2]
[394039633,1763210707811,179.08,7.1e-05,2]
[394039634,1763210708104,179.08,7.3e-05,2]
[394039635,1763210708388,179.08,7.4e-05,2]
[394039636,1763210708693,179.08,7.6e-05,2]
[394039637,1763210708967,179.08,7.7e-05,2]
[394039638,1763210709267,179.08,7.9e-05,2]
[394039639,1763210709553,179.08,8e-05,2]
[394039640,1763210709866,179.08,8.1e-05,2]
[394039641,1763210710170,179.08,8.3e-05,2]
[394039642,1763210710458,179.08,8.4e-05,2]
[394039643,1763210710737,179.08,8.6e-05,2]
[394039644,1763210711057,179.08,8.7e-05,2]
[394039645,1763210711394,164.85,8.9e-05,2]
[394039646,1763210711418,14.23,8.9e-05,2]
[394039647,1763210711728,179.08,9e-05,2]
[394039648,1763210712009,179.08,9.1e-05,2]
[394039649,1763210712283,179.08,9.3e-05,2]
[394039650,1763210712573,179.08,9.4e-05,2]
[394039651,1763210712878,179.08,9.6e-05,2]
[394039652,1763210713288,179.08,9.7e-05,2]
[394039653,1763210713626,179.08,9.9e-05,2]
[394039654,1763210714039,179.08,0.0001,2]
[394039655,1763210714323,179.08,0.000101,2]
[394039656,1763210714804,179.08,0.000103,2]
[394039657,1763210715026,5000.0,0.00019997,2]
[394039658,1763210715164,179.08,0.000104,2]
[394039659,1763210715494,179.08,0.000106,2]
[394039660,1763210715830,179.08,0.000107,2]
[394039661,1763210716293,179.08,0.000109,2]
[394039662,1763210716574,179.08,0.00011,2]
[394039663,1763210716845,179.08,0.000111,2]
[394039664,1763210717282,179.08,0.000113,2]
[394039665,1763210717567,179.08,0.000114,2]
[394039666,1763210717859,179.08,0.000116,2]
[394039667,1763210718151,179.08,0.000117,2]
[394039668,1763210718491,179.08,0.000119,2]
[394039669,1763210737043,1225.1,0.00019997,2]
[394039670,1763210737066,3774.9,0.00019997,2]
[394039671,1763210744227,-1567.93203409,0.00020187,2]
[394039672,1763210759089,5000.0,0.00019997,2]
[394039674,1763210781166,1225.11,0.00019997,2]
[394039675,1763210781187,3774.89,0.00019997,2]
[394039677,1763210804288,5000.0,0.00019997,2]
[394039809,1763210826320,1225.12,0.00019997,2]
[394039810,1763210826345,3774.88,0.00019997,2]
[394039812,1763210848353,5000.0,0.00019997,2]
[394039813,1763210870449,1225.13,0.00019997,2]
[394039814,1763210870471,3774.87,0.00019997,2]
[394039815,1763210878907,5000.0,0.00019997,2]
[394039816,1763210887766,1225.14,0.00019997,2]
[394039817,1763210887786,3774.86,0.00019997,2]
[394039818,1763210895616,5000.0,0.00019997,2]
[394039819,1763210903692,1225.15,0.00019997,2]
[394039820,1763210903714,3774.85,0.00019997,2]
[394039821,1763210911524,1314.38194188,0.00019997,2]
[394039822,1763210919621,4910.77805812,0.00019997,2]
[394039823,1763210919645,89.22194188,0.00019997,2]
[394039825,1763210941991,5000.0,0.00019997,2]
[394039826,1763210942018,203.58,5e-05,2]
[394039827,1763210942312,203.58,5.1e-05,2]
[394039828,1763210942632,203.58,5.3e-05,2]
[394039829,1763210942977,203.58,5.4e-05,2]
[394039830,1763210943414,203.58,5.6e-05,2]
[394039831,1763210943743,203.58,5.7e-05,2]
[394039832,1763210944069,203.58,5.9e-05,2]
[394039833,1763210944405,203.58,6e-05,2]
[394039834,1763210944718,203.58,6.1e-05,2]
[394039835,1763210945031,203.58,6.3e-05,2]
[394039836,1763210945718,203.58,6.4e-05,2]
[394039837,1763210946054,203.58,6.6e-05,2]
[394039838,1763210946530,203.58,6.7e-05,2]
[394039839,1763210946866,203.58,6.9e-05,2]
[394039840,1763210947183,203.58,7e-05,2]
[394039841,1763210947488,203.58,7.1e-05,2]
[394039842,1763210947801,203.58,7.3e-05,2]
[394039843,1763210948104,203.58,7.4e-05,2]
[394039844,1763210948436,203.58,7.6e-05,2]
[394039845,1763210948742,203.58,7.7e-05,2]
[394039846,1763210949044,203.58,7.9e-05,2]
[394039847,1763210949429,203.58,8e-05,2]
[394039848,1763210950144,203.58,8.1e-05,2]
[394039849,1763210950552,203.58,8.3e-05,2]
[394039850,1763210950881,203.58,8.4e-05,2]
[394039851,1763210951271,203.58,8.6e-05,2]
[394039852,1763210951676,203.58,8.7e-05,2]
[394039853,1763210951988,203.58,8.9e-05,2]
[394039854,1763210952104,-414.552891,0.00020187,2]
[394039855,1763210952322,69.42951049,9e-05,2]
[394039856,1763210952344,134.15048951,9e-05,2]
[394039857,1763210952626,203.58,9.1e-05,2]
[394039858,1763210952943,100.70661239,9.3e-05,2]
[394039859,1763210952967,102.87338761,9.3e-05,2]
[394039860,1763210953289,203.58,9.4e-05,2]
[394039861,1763210953719,203.58,9.6e-05,2]
[394039862,1763210954147,125.57467051,9.7e-05,2]
[394039863,1763210954171,78.00532949,9.7e-05,2]
[394039864,1763210954448,203.58,9.9e-05,2]
[394039865,1763210954745,203.58,0.0001,2]
[394039866,1763210955081,203.58,0.000101,2]
[394039867,1763210955415,203.58,0.000103,2]
[394039868,1763210955720,203.58,0.000104,2]
[394039869,1763210956118,203.58,0.000106,2]
[394039870,1763210956310,203.58,0.000107,2]
[394039871,1763210956668,203.58,0.000109,2]
[394039872,1763210956970,203.58,0.00011,2]
[394039873,1763210957305,203.58,0.000111,2]
[394039874,1763210957643,203.58,0.000113,2]
[394039875,1763210957975,203.58,0.000114,2]
[394039876,1763210958287,203.58,0.000116,2]
[394039877,1763210958611,203.58,0.000117,2]
[394039878,1763210958931,203.58,0.000119,2]
[394039879,1763210959271,203.58,0.00012,2]
[394039880,1763211002336,152.5,5e-05,2]
[394039881,1763211002665,152.5,5.1e-05,2]
[394039882,1763211003131,152.5,5.3e-05,2]
[394039883,1763211003514,152.5,5.4e-05,2]
[394039884,1763211003881,152.5,5.6e-05,2]
[394039885,1763211004195,152.5,5.7e-05,2]
[394039886,1763211004506,152.5,5.9e-05,2]
[394039887,1763211004845,152.5,6e-05,2]
[394039888,1763211005155,152.5,6.1e-05,2]
[394039889,1763211005484,152.5,6.3e-05,2]
[394039890,1763211005850,152.5,6.4e-05,2]
[394039891,1763211006195,152.5,6.6e-05,2]
[394039892,1763211006512,152.5,6.7e-05,2]
[394039893,1763211006905,152.5,6.9e-05,2]
[394039894,1763211007218,152.5,7e-05,2]
[394039895,1763211007518,152.5,7.1e-05,2]
[394039896,1763211007848,152.5,7.3e-05,2]
[394039897,1763211008222,152.5,7.4e-05,2]
[394039898,1763211008510,107.09377612,7.6e-05,2]
[394039899,1763211008534,45.40622388,7.6e-05,2]
[394039900,1763211008819,152.5,7.7e-05,2]
[394039901,1763211009157,152.5,7.9e-05,2]
[394039902,1763211009538,152.5,8e-05,2]
[394039903,1763211009867,152.5,8.1e-05,2]
[394039904,1763211010170,152.5,8.3e-05,2]
[394039905,1763211010958,152.5,8.4e-05,2]
[394039906,1763211011291,152.5,8.6e-05,2]
[394039907,1763211011699,152.5,8.7e-05,2]
[394039908,1763211012038,152.5,8.9e-05,2]
[394039909,1763211012357,152.5,9e-05,2]
[394039910,1763211012668,152.5,9.1e-05,2]
[394039911,1763211013025,152.5,9.3e-05,2]
[394039912,1763211013354,152.5,9.4e-05,2]
[394039913,1763211013941,152.5,9.6e-05,2]
[394039914,1763211014547,152.5,9.7e-05,2]
[394039915,1763211014872,152.5,9.9e-05,2]
[394039916,1763211015195,152.5,0.0001,2]
[394039917,1763211015542,152.5,0.000101,2]
[394039918,1763211015898,152.5,0.000103,2]
[394039919,1763211016215,152.5,0.000104,2]
[394039920,1763211016528,152.5,0.000106,2]
[394039921,1763211016967,152.5,0.000107,2]
[394039922,1763211017273,57.36667091,0.000109,2]
[394039923,1763211017296,95.13332909,0.000109,2]
[394039924,1763211017617,152.5,0.00011,2]
[394039925,1763211017922,152.5,0.000111,2]
[394039926,1763211018764,152.5,0.000113,2]
[394039927,1763211019091,152.5,0.000114,2]
[394039928,1763211019427,152.5,0.000116,2]
[394039929,1763211019750,152.5,0.000117,2]
[394039930,1763211020059,152.5,0.000119,2]
[394040015,1763211045104,-5000.0,0.00022881,2]
[394040017,1763211045113,-5000.0,0.00023112,2]
[394040019,1763211045122,-160.0,0.00023345,2]
[394040021,1763211045131,-300.0,0.00023345,2]
[394040023,1763211045140,-2553.0,0.00025,2]
[394040025,1763211045149,-300.0,0.00025333,2]
[394040027,1763211045158,-398.34630067,0.00026282,2]
[394040029,1763211045167,-414.552891,0.00026676,2]
[394040031,1763211045176,-155.0,0.00029479,34]
[394040033,1763211045185,-398.34630067,0.00031613,2]
[394040035,1763211045194,-150.0,0.00031996,2]
[394040037,1763211045203,-212.7421201,0.00032579,2]
[394040039,1763211045212,-500.0,0.00033112,7]
[394040040,1763211045220,-500.0,0.00033112,7]
[394040042,1763211045229,-236.720863,0.00033112,7]
[394040044,1763211045238,-500.0,0.00033112,7]
[394040046,1763211045247,-500.0,0.00033112,7]
[394040048,1763211045256,-500.0,0.00033112,7]
[394040050,1763211045266,-500.0,0.00033112,7]
[394040052,1763211045275,-500.0,0.00033112,7]
[394040054,1763211045285,-500.0,0.00033112,7]
[394040057,1763211045294,-535.56731297,0.00033112,7]
[394040059,1763211045303,-500.0,0.00033112,7]
[394040060,1763211045312,-4199.5249328,0.00033113,2]
[394040063,1763211045322,-414.552891,0.00033165,2]
[394040064,1763211045331,-163.81,0.0003352,2]
[394040066,1763211045340,-245.71,0.00035043,2]
[394040068,1763211045349,-4726.1205643,0.00035359,38]
[394040070,1763211045358,-500.0,0.00036123,13]
[394040072,1763211045367,-165.4433344,0.00036249,7]
[394040074,1763211045376,-16499.10707291,0.0003625,2]
[394040188,1763211050016,-382173.12398767,0.0003625,2]
[394040191,1763211241932,154.62,5e-05,2]
[394040192,1763211242299,154.62,0.00012,2]
[394040349,1763212232321,-96.64847542,0.00024953,2]
[394040352,1763212232333,-4903.35152458,0.00024953,2]
[394040354,1763212232342,-877.69735421,0.00025205,2]
[394040356,1763212232352,-239.19894839,0.00026282,2]
[394040358,1763212232362,-1200.0,0.000265,2]
[394040360,1763212232371,-300.0,0.00026848,2]
[394040362,1763212232380,-1207.0,0.000275,3]
[394040364,1763212232389,-400.0,0.0002903,2]
[394040366,1763212232397,-168.79385871,0.00029033,2]
[394040367,1763212232406,-154.313,0.00029084,21]
[394040369,1763212232416,-1374.3151121,0.00031301,2]
[394040371,1763212232425,-326.92320514,0.00031401,2]
[394040373,1763212232434,-14543.1332815,0.00031402,2]
[394040375,1763212232443,-239.19894839,0.00031613,2]
[394040377,1763212232453,-5871.4553241,0.00031846,2]
[394040379,1763212232462,-167.407172,0.00031964,2]
[394040381,1763212232471,-1374.31511208,0.00032423,2]
[394040383,1763212232480,-1374.31511208,0.00033545,2]
[394040385,1763212232489,-150.0,0.00033954,2]
[394040387,1763212232498,-1374.31511208,0.00034667,2]
[394040389,1763212232507,-168.79385871,0.00034791,2]
[394040391,1763212232517,-1374.31511208,0.00035789,2]
[394040393,1763212232526,-467.79647312,0.000359,90]
[394040395,1763212232535,-2781.06819805,0.0003599,2]
[394040397,1763212232544,-539.0,0.00036,2]
[394040399,1763212232553,-500.34745983,0.00036042,2]
[394040648,1763212246324,-4.25037963,0.00031086,2]
[394040649,1763212246421,-38.0305531,0.00031086,2]
[394040650,1763212246640,-70.56679377,0.00031086,2]
[394040651,1763212294043,169.0,0.000328,120]
[394040653,1763212327202,169.0,0.000199,2]
[394040659,1763212441935,153.72,5e-05,2]
[394040660,1763212442264,153.72,0.00012,2]
[394040661,1763212502166,153.11,5e-05,2]
[394040662,1763212502475,153.11,6.8e-05,2]
[394040663,1763212502777,153.11,8.5e-05,2]
[394040664,1763212503094,153.11,0.000103,2]
[394040665,1763212503503,153.11,0.00012,2]
[394040667,1763212562467,153.1,5e-05,2]
[394040668,1763212562865,153.1,6.8e-05,2]
[394040669,1763212563261,153.1,8.5e-05,2]
[394040670,1763212563555,153.1,0.000103,2]
[394040671,1763212563864,153.1,0.00012,2]
[394040672,1763212597363,-150.0,0.00025418,2]
[394040673,1763212597386,-5000.0,0.00025631,2]
[394040674,1763212621864,153.04,5e-05,2]
[394040675,1763212622217,153.04,6.8e-05,2]
[394040676,1763212622506,153.04,8.5e-05,2]
[394040677,1763212622794,153.04,0.000103,2]
[394040678,1763212637590,-5000.0,0.0002658,2]
[394040679,1763212637612,-799.0,0.00026848,2]
[394040680,1763212650802,5000.0,0.00027,2]
[394040681,1763212673094,3531.37796263,0.00027,2]
[394040686,1763212753340,-177.0,0.00027418,2]
[394040687,1763212753361,-204.0,0.00029418,2]
[394040688,1763212753383,-168.0,0.00029796,2]
[394040689,1763212753405,-168.0,0.00029989,2]
[394040690,1763212753425,-515.36816703,0.00030874,2]
[394040691,1763212753450,-267.62843485,0.00030876,2]